fUST/lending_fUST_20240423
["ID","MTS","AMOUNT","RATE_DAILY","PERIOD"]
[323207276,1713813038625,-153.0,0.00027973,2]
[323207277,1713813038634,-153.0,0.00027973,2]
[323207278,1713813038643,-153.0,0.00027973,2]
[323207279,1713813038652,-153.0,0.00027973,2]
[323207280,1713813038662,-153.0,0.00027973,2]
[323207281,1713813038671,-153.0,0.00027973,2]
[323207282,1713813038681,-153.0,0.00027973,2]
[323207283,1713813038690,-153.0,0.00027973,2]
[323207284,1713813038719,-153.0,0.00027973,2]
[323207285,1713813038728,-153.0,0.00027973,2]
[323207286,1713813038738,-153.0,0.00027973,2]
[323207287,1713813038748,-153.0,0.00027973,2]
[323207288,1713813038758,-153.0,0.00027973,2]
[323207289,1713813038767,-153.0,0.00027973,2]
[323207290,1713813038778,-153.0,0.00027973,2]
[323207291,1713813038787,-153.0,0.00027973,2]
[323207292,1713813038797,-153.0,0.00027973,2]
[323207293,1713813038806,-153.0,0.00027973,2]
[323207294,1713813038815,-306.0,0.00027973,2]
[323207295,1713813038825,-153.0,0.00027973,2]
[323207296,1713813038834,-153.0,0.00027973,2]
[323207297,1713813038844,-153.0,0.00027973,2]
[323207298,1713813038853,-153.0,0.00027973,2]
[323207299,1713813038863,-268.3049176,0.00027973,2]
[323207300,1713813038872,-153.0,0.00027973,2]
[323207301,1713813038882,-154.9993477,0.00027973,2]
[323207302,1713813038891,-406.901779,0.00027973,2]
[323207303,1713813038901,-153.0,0.00027973,2]
[323207304,1713813038910,-153.0,0.00027973,2]
[323207305,1713813038920,-153.0,0.00027973,2]
[323207306,1713813038929,-153.0,0.00027973,2]
[323207307,1713813038939,-153.0,0.00027973,2]
[323207308,1713813038948,-153.0,0.00027973,2]
[323207309,1713813038958,-153.0,0.00027973,2]
[323207310,1713813038967,-153.0,0.00027973,2]
[323207311,1713813038977,-153.0,0.00027973,2]
[323207312,1713813038986,-153.0,0.00027973,2]
[323207313,1713813038995,-25890.35,0.0002798,3]
[323207314,1713813039005,-224.60731983,0.00027989,2]
[323207315,1713813039015,-37111.31,0.00027989,3]
[323207316,1713813039025,-44533.57,0.0002799,3]
[323207317,1713813039034,-464.82452034,0.00027999,2]
[323207318,1713813039046,-548.44353444,0.00027999,2]
[323207319,1713813039055,-500.0,0.00027999,2]
[323207320,1713813039065,-610.08647423,0.00027999,2]
[323207321,1713813039075,-500.0,0.00027999,2]
[323207322,1713813039084,-500.0,0.00027999,2]
[323207323,1713813039094,-500.0,0.00027999,2]
[323207324,1713813039104,-500.0,0.00027999,2]
[323207325,1713813039114,-500.0,0.00027999,2]
[323207326,1713813039123,-500.0,0.00027999,2]
[323207327,1713813039133,-99999.999999,0.00028,4]
[323207328,1713813039142,-220.76868482,0.00028,2]
[323207329,1713813039152,-153.0,0.00028,2]
[323207330,1713813039161,-153.0,0.00028,2]
[323207331,1713813039169,-153.0,0.00028,2]
[323207332,1713813039179,-153.0,0.00028,2]
[323207333,1713813039188,-153.0,0.00028,2]
[323207334,1713813039197,-153.0,0.00028,2]
[323207335,1713813039207,-153.0,0.00028,2]
[323207336,1713813039216,-153.0,0.00028,2]
[323207337,1713813039226,-153.0,0.00028,2]
[323207338,1713813039236,-153.0,0.00028,2]
[323207339,1713813039246,-153.0,0.00028,2]
[323207340,1713813039255,-153.0,0.00028,2]
[323207341,1713813039264,-153.0,0.00028,2]
[323207342,1713813039273,-406.7261526,0.00028,2]
[323207343,1713813039284,-153.0,0.00028,2]
[323207344,1713813039293,-153.0,0.00028,2]
[323207345,1713813039303,-153.0,0.00028,2]
[323207346,1713813039313,-153.0,0.00028,2]
[323207347,1713813039323,-153.0,0.00028,2]
[323207348,1713813039332,-153.0,0.00028,2]
[323207349,1713813039342,-153.0,0.00028,2]
[323207350,1713813039353,-153.0,0.00028,2]
[323207351,1713813039363,-153.0,0.00028,2]
[323207352,1713813039373,-153.0,0.00028,2]
[323207353,1713813039383,-153.0,0.00028,2]
[323207354,1713813039392,-153.0,0.00028,2]
[323207355,1713813039402,-153.0,0.00028,2]
[323207356,1713813039417,-153.0,0.00028,2]
[323207357,1713813039428,-166.666666,0.00028038,2]
[323207358,1713813039438,-166.666666,0.00028679,2]
[323207359,1713813039448,-47608.33209764,0.0002877,2]
[323207360,1713813039458,-188354.55086785,0.0002877,2]
[323207361,1713813039467,-566.89793852,0.00028958,30]
[323207362,1713813039476,-1262.98562613,0.00028958,120]
[323207363,1713813039485,-593.7984422,0.00028958,120]
[323207364,1713813039497,-1157.75228905,0.00028958,30]
[323207365,1713813039506,-968.96751337,0.00028958,120]
[323207366,1713813039515,-30098.03,0.00028958,30]
[323207367,1713813039524,-510.40333319,0.00028958,30]
[323207368,1713813039534,-154.8915749,0.00028958,120]
[323207369,1713813039543,-163.07982952,0.00028963,2]
[323207370,1713813039552,-842.99041656,0.00029,2]
[323207371,1713813039562,-163.07982952,0.00029287,2]
[323207372,1713813039571,-166.666666,0.00029321,2]
[323207373,1713813039580,-155.9266058,0.0002942,2]
[323207374,1713813039589,-420.0,0.00029699,2]
[323207375,1713813039598,-155.9266058,0.00029772,2]
[323207376,1713813039607,-206.11179721,0.00029808,2]
[323207377,1713813039616,-166.666666,0.00029962,2]
[323207378,1713813039626,-17669.8293836,0.00029987,2]
[323207379,1713813039635,-3641.75095553,0.0003,2]
[323207380,1713813039646,-1281.53380601,0.0003,5]
[323207381,1713813039655,-5647.5656994,0.0003,7]
[323207382,1713813039664,-200.13974053,0.0003,30]
[323207383,1713813039673,-10099.86286983,0.0003,2]
[323207384,1713813039682,-2659.0,0.0003,2]
[323207385,1713813039691,-320.898431,0.0003,30]
[323207386,1713813039701,-154.84515485,0.0003,4]
[323207387,1713813039711,-154.84515485,0.0003,4]
[323207388,1713813039720,-154.84515485,0.0003,4]
[323207389,1713813039729,-154.84515485,0.0003,30]
[323207390,1713813039739,-253.99433855,0.0003,4]
[323207392,1713813039748,-166.666666,0.0003,2]
[323207393,1713813039757,-259.0,0.0003,2]
[323207394,1713813039766,-508.07,0.00030136,2]
[323207395,1713813039776,-176.361824,0.00030137,2]
[323207396,1713813039785,-176.361824,0.00030137,21]
[323207397,1713813039794,-176.361824,0.00030137,41]
[323207398,1713813039803,-176.361824,0.00030137,61]
[323207400,1713813039813,-176.361824,0.00030137,80]
[323207401,1713813039822,-176.361824,0.00030137,100]
[323207402,1713813039832,-176.361824,0.00030137,120]
[323207403,1713813039842,-163.07982952,0.00030159,7]
[323207404,1713813039851,-508.07,0.00030191,2]
[323207405,1713813039860,-508.07,0.00030246,2]
[323207406,1713813039870,-508.07,0.00030301,2]
[323207407,1713813039879,-508.07,0.00030356,2]
[323207408,1713813039888,-508.07,0.0003041,2]
[323207409,1713813039900,-508.07,0.00030465,2]
[323207410,1713813039909,-508.07,0.0003052,2]
[323207411,1713813039920,-508.07,0.00030575,2]
[323207412,1713813039929,-166.666666,0.00030603,2]
[323207413,1713813039939,-508.07,0.0003063,2]
[323207414,1713813039948,-508.07,0.00030684,2]
[323207415,1713813039958,-508.07,0.00030739,2]
[323207416,1713813039967,-508.07,0.00030794,2]
[323207417,1713813039976,-508.07,0.00030849,2]
[323207419,1713813039987,-508.07,0.00030904,2]
[323207420,1713813039996,-508.07,0.00030958,2]
[323207421,1713813040006,-150.0,0.00030961,2]
[323207422,1713813040016,-2020.13493977,0.00031,2]
[323207423,1713813040025,-1964.27711413,0.00031,2]
[323207424,1713813040034,-508.07,0.00031013,2]
[323207425,1713813040043,-508.07,0.00031068,2]
[323207426,1713813040052,-508.07,0.00031123,2]
[323207427,1713813040062,-508.07,0.00031178,2]
[323207428,1713813040071,-508.07,0.00031232,2]
[323207429,1713813040080,-508.07,0.00031287,2]
[323207430,1713813040089,-508.07,0.00031342,2]
[323207431,1713813040098,-508.12933703,0.00031397,2]
[323207432,1713813040108,-417.0,0.00031408,2]
[323207433,1713813040117,-191.40398273,0.00032,4]
[323207434,1713813040127,-587.0,0.00032669,2]
[323207435,1713813040136,-154.255768,0.00032687,7]
[323207436,1713813040146,-259.0,0.00033,2]
[323207437,1713813040155,-259.0,0.00033,2]
[323207438,1713813040164,-383.235577,0.00033165,2]
[323207439,1713813040173,-205.458333,0.00033165,2]
[323207440,1713813040182,-152.24651575,0.00033964,7]
[323207441,1713813040191,-150.0,0.00033999,2]
[323207442,1713813040200,-465.92917544,0.00034,4]
[323207443,1713813040209,-155.9266058,0.00034353,7]
[323207444,1713813040218,-417.0,0.00034408,2]
[323207445,1713813040227,-10365.03110214,0.00034555,10]
[323207446,1713813040237,-1270.67915196,0.00034728,12]
[323207447,1713813040246,-44444.0,0.00034882,3]
[323207448,1713813040255,-1809.43657788,0.000349,2]
[323207449,1713813040264,-14515.25,0.00034946,2]
[323207450,1713813040273,-14515.25,0.00034946,2]
[323207451,1713813040282,-14515.25,0.00034946,2]
[323207452,1713813040291,-14515.25,0.00034946,2]
[323207453,1713813040300,-14515.25,0.00034946,2]
[323207454,1713813040309,-14515.25,0.00034946,2]
[323207455,1713813040319,-14515.25,0.00034946,2]
[323207456,1713813040327,-14515.25,0.00034946,2]
[323207457,1713813040336,-14515.25,0.00034946,2]
[323207458,1713813040345,-14515.25,0.00034946,2]
[323207459,1713813040354,-154.07814833,0.0003495,7]
[323207460,1713813040363,-150.0,0.00034999,2]
[323207461,1713813040372,-186.28236347,0.00035,30]
[323207462,1713813040381,-5312.69548551,0.00035,4]
[323207463,1713813040391,-853.57953077,0.00035,2]
[323207464,1713813040401,-10279.92331061,0.00035,2]
[323207465,1713813040412,-6421.39021079,0.00035,7]
[323207466,1713813040422,-502.60562193,0.00035,120]
[323207467,1713813040431,-6882.79997042,0.00035,4]
[323207468,1713813040440,-214.38520539,0.00035,4]
[323207469,1713813040450,-12749.46392609,0.00035,4]
[323207470,1713813040460,-210316.70887647,0.00035,30]
[323207471,1713813040470,-740.59231363,0.000351,2]
[323207472,1713813040478,-152.24651575,0.00035141,7]
[323207473,1713813040489,-155.9266058,0.00035451,7]
[323207474,1713813040498,-3537.54042383,0.00035455,14]
[323207475,1713813040507,-4141.140404,0.00035616,120]
[323207476,1713813040517,-154.84515485,0.0003589,2]
[323207477,1713813040526,-823.0,0.00035936,2]
[323207478,1713813040535,-150.0,0.00035995,2]
[323207479,1713813040544,-150.0,0.00035999,2]
[323207480,1713813040553,-55110.89696378,0.00036,30]
[323207481,1713813040562,-796.24410653,0.00036,14]
[323207482,1713813040571,-158.02382819,0.00036,41]
[323207483,1713813040580,-259.0,0.00036,2]
[323207484,1713813040589,-259.0,0.00036,2]
[323207485,1713813040598,-259.0,0.00036,2]
[323207486,1713813040607,-1256.0,0.00036,7]
[323207487,1713813040616,-155.9266058,0.00036095,7]
[323207488,1713813040625,-152.24651577,0.00036103,7]
[323207489,1713813040634,-256.17184065,0.0003624,2]
[323207490,1713813040643,-155.9266058,0.000366,7]
[323207491,1713813040654,-272105.97556347,0.00036987,4]
[323207492,1713813040663,-151.0,0.00036987,2]
[323207493,1713813040672,-151.0,0.00036987,2]
[323207494,1713813040681,-151.0,0.00036987,2]
[323207495,1713813040690,-151.0,0.00036987,2]
[323207496,1713813040699,-151.0,0.00036987,2]
[323207497,1713813040708,-151.0,0.00036987,2]
[323207498,1713813040717,-151.0,0.00036987,2]
[323207499,1713813040726,-777.167082,0.00036987,2]
[323207500,1713813040735,-777.167082,0.00036987,2]
[323207501,1713813040745,-151.0,0.00036987,2]
[323207502,1713813040754,-151.0,0.00036987,2]
[323207503,1713813040763,-151.401165,0.00036987,2]
[323207504,1713813040772,-151.331985,0.00036987,2]
[323207505,1713813040782,-908.987864,0.00036987,2]
[323207506,1713813040792,-908.987864,0.00036987,2]
[323207507,1713813040801,-230.992176,0.00036987,2]
[323207508,1713813040810,-230.992176,0.00036987,2]
[323207509,1713813040820,-151.0,0.00036987,2]
[323207510,1713813040830,-151.0,0.00036987,2]
[323207511,1713813040839,-151.0,0.00036987,2]
[323207512,1713813040848,-151.0,0.00036987,2]
[323207513,1713813040858,-151.0,0.00036987,2]
[323207514,1713813040867,-1052.734934,0.00036987,2]
[323207515,1713813040877,-1052.734934,0.00036987,2]
[323207516,1713813040886,-151.0,0.00036987,2]
[323207517,1713813040897,-151.0,0.00036987,2]
[323207518,1713813040906,-150.0,0.00036999,2]
[323207519,1713813040915,-2924.81959822,0.00037,2]
[323207520,1713813040925,-10565.63695857,0.00037,2]
[323207521,1713813040934,-667.0,0.00037,7]
[323207522,1713813040944,-1255.0,0.00037,7]
[323207523,1713813040953,-802.0,0.00037,7]
[323207524,1713813040962,-155.9266058,0.00037195,7]
[323207525,1713813040973,-417.0,0.00037408,2]
[323207526,1713813040984,-3000.0,0.000375,32]
[323207527,1713813040993,-3000.0,0.0003751,32]
[323207528,1713813041002,-3000.0,0.0003752,32]
[323207529,1713813041011,-3000.0,0.0003753,32]
[323207530,1713813041021,-3000.0,0.0003754,32]
[323207531,1713813041030,-3000.0,0.0003755,32]
[323207532,1713813041039,-3000.0,0.0003756,32]
[323207533,1713813041048,-3000.0,0.0003757,32]
[323207534,1713813041057,-3000.0,0.0003758,32]
[323207535,1713813041066,-4662.321782,0.0003759,32]
[323207536,1713813041075,-155.9266058,0.00038644,7]
[323207537,1713813041085,-383.235577,0.00038933,2]
[323207538,1713813041094,-205.458333,0.00038933,2]
[323207539,1713813041104,-259.0,0.00039,2]
[323207540,1713813041113,-259.0,0.00039,2]
[323207541,1713813041122,-259.0,0.00039,2]
[323207542,1713813041132,-276.16517788,0.00039517,7]
[323207543,1713813041141,-1152.0,0.00039529,3]
[323207544,1713813041153,-155.9266058,0.00039743,7]
[323207545,1713813041162,-150.0,0.00039999,2]
[323207546,1713813041172,-154.84515485,0.0004,2]
[323207547,1713813041181,-1492.7918435,0.0004,7]
[323207548,1713813041190,-7473.53236143,0.0004,2]
[323207549,1713813041198,-19890.0,0.0004,2]
[323207550,1713813041207,-4157.08582374,0.0004,30]
[323207551,1713813041310,-192.3358608,0.0004,30]
[323207552,1713813041320,-3169.85130403,0.0004,15]
[323207553,1713813041330,-4799.81111303,0.0004,2]
[323207554,1713813041339,-1088.48226404,0.0004,2]
[323207555,1713813041349,-209.96312836,0.0004,120]
[323207556,1713813041358,-155.9266058,0.00040294,30]
[323207557,1713813041368,-163.07982954,0.00040514,30]
[323207558,1713813041377,-150.0,0.00040999,2]
[323207559,1713813041387,-188.87781556,0.00041,2]
[323207560,1713813041397,-2000.0,0.00041095,2]
[323207561,1713813041414,-177.8760005,0.00041096,2]
[323207562,1713813041423,-155.25721897,0.00041456,30]
[323207563,1713813041432,-4141.140404,0.00041553,120]
[323207564,1713813041441,-156.06083935,0.00041832,4]
[323207565,1713813041453,-52316.6882152,0.00041834,4]
[323207619,1713813043320,-801.79803207,0.000275,17]
[323207620,1713813043330,-151.0,0.00035,2]
[323207621,1713813043340,-151.0,0.00036987,2]
[323207622,1713813043349,-150.83408251,0.00037822,2]
[323207623,1713813043358,-301.66816502,0.00038458,4]
[323207624,1713813043368,-603.33633004,0.00039104,7]
[323207625,1713813043377,-166.81042853,0.00039761,4]
[323207626,1713813043388,-15899.98061451,0.00041834,4]
[323207627,1713813043398,-777.167082,0.00041834,7]
[323207628,1713813043409,-777.167082,0.00041834,7]
[323207629,1713813043419,-151.0,0.00041834,7]
[323207630,1713813043428,-151.0,0.00041834,7]
[323207631,1713813043438,-908.987864,0.00041834,7]
[323207632,1713813043448,-908.987864,0.00041834,7]
[323207633,1713813043458,-230.992176,0.00041834,7]
[323207634,1713813043467,-230.992176,0.00041834,7]
[323207635,1713813043476,-249.983144,0.00041834,7]
[323207636,1713813043485,-291.508456,0.00041834,7]
[323207637,1713813043497,-151.0,0.00041834,7]
[323207638,1713813043506,-151.0,0.00041834,7]
[323207639,1713813043515,-151.0,0.00041834,7]
[323207640,1713813043524,-1052.734934,0.00041834,7]
[323207641,1713813043533,-1052.734934,0.00041834,7]
[323207642,1713813043542,-151.0,0.00041834,7]
[323207643,1713813043551,-151.0,0.00041834,7]
[323207644,1713813043560,-151.0,0.00041834,7]
[323207645,1713813043569,-1546.68780373,0.00041841,4]
[323207646,1713813043578,-150.0,0.00041999,60]
[323207647,1713813043588,-444.02792473,0.00042,120]
[323207648,1713813043597,-151.0,0.00042,7]
[323207649,1713813043606,-151.0,0.00042,7]
[323207650,1713813043615,-259.0,0.00042,2]
[323207651,1713813043624,-259.0,0.00042,2]
[323207652,1713813043634,-259.0,0.00042,2]
[323207653,1713813043643,-1636.32459727,0.000424,120]
[323207654,1713813043654,-151.0,0.000424,7]
[323207655,1713813043664,-150.0,0.00042999,60]
[323207656,1713813043673,-435178.35020189,0.000433,120]
[323207657,1713813043683,-151.0,0.000433,7]
[323207658,1713813043693,-777.167082,0.000433,7]
[323207659,1713813043703,-777.167082,0.000433,7]
[323207660,1713813043712,-151.0,0.000433,7]
[323207661,1713813043722,-151.0,0.000433,7]
[323207662,1713813043731,-908.987864,0.000433,7]
[323207663,1713813043741,-908.987864,0.000433,7]
[323207664,1713813043750,-230.992176,0.000433,7]
[323207665,1713813043760,-230.992176,0.000433,7]
[323207666,1713813043770,-151.0,0.000433,7]
[323207667,1713813043779,-151.0,0.000433,7]
[323207668,1713813043788,-256.582378,0.000433,7]
[323207669,1713813043797,-1052.734934,0.000433,7]
[323207670,1713813043807,-1052.734934,0.000433,7]
[323207671,1713813043817,-151.0,0.000433,7]
[323207672,1713813043826,-151.0,0.000433,7]
[323207673,1713813043836,-151.0,0.000433,7]
[323207674,1713813043846,-1613.0,0.00043482,3]
[323207675,1713813043857,-400.0,0.00043836,30]
[323207676,1713813043866,-150.0,0.00043999,60]
[323207677,1713813043876,-1000.0,0.00044,44]
[323207678,1713813043885,-866.81654111,0.00044173,4]
[323207679,1713813043895,-155.92660587,0.00044366,30]
[323207680,1713813043907,-1647.46692173,0.0004439,2]
[323207681,1713813043916,-383.235577,0.00044701,2]
[323207682,1713813043926,-205.458333,0.00044701,2]
[323207683,1713813043936,-229.0,0.0004497,35]
[323207684,1713813043945,-229.0,0.0004498,35]
[323207685,1713813043955,-229.0,0.0004499,35]
[323207686,1713813043965,-423.78567135,0.00044999,4]
[323207687,1713813043975,-150.0,0.00044999,60]
[323207688,1713813043984,-219.28587195,0.00044999,120]
[323207689,1713813043994,-2690.14344575,0.00045,120]
[323207690,1713813044004,-325903.96064862,0.00045,2]
[323207691,1713813044017,-742.65462159,0.00045,2]
[323207692,1713813044028,-988.53139127,0.00045,2]
[323207693,1713813044041,-322282.60463852,0.00045,2]
[323207694,1713813044051,-816.64457182,0.00045,20]
[323207695,1713813044060,-26228.53858459,0.00045,10]
[323207696,1713813044077,-19454.35355049,0.00045,10]
[323207697,1713813044086,-151.0,0.00045,7]
[323207698,1713813044095,-151.0,0.00045,7]
[323207699,1713813044104,-151.0,0.00045,7]
[323207700,1713813044114,-151.0,0.00045,7]
[323207701,1713813044123,-151.0,0.00045,7]
[323207702,1713813044133,-151.0,0.00045,7]
[323207703,1713813044142,-151.0,0.00045,7]
[323207704,1713813044151,-151.0,0.00045,7]
[323207705,1713813044161,-151.0,0.00045,7]
[323207706,1713813044170,-151.0,0.00045,7]
[323207707,1713813044179,-222.90778,0.00045,7]
[323207708,1713813044189,-151.0,0.00045,7]
[323207709,1713813044198,-777.167082,0.00045,7]
[323207710,1713813044207,-777.167082,0.00045,7]
[323207711,1713813044216,-151.0,0.00045,7]
[323207712,1713813044225,-151.0,0.00045,7]
[323207713,1713813044235,-908.987864,0.00045,7]
[323207714,1713813044244,-908.987864,0.00045,7]
[323207715,1713813044253,-230.992176,0.00045,7]
[323207716,1713813044262,-230.992176,0.00045,7]
[323207717,1713813044271,-248.156179,0.00045,7]
[323207718,1713813044280,-151.0,0.00045,7]
[323207719,1713813044289,-1052.734934,0.00045,7]
[323207720,1713813044298,-1052.734934,0.00045,7]
[323207721,1713813044307,-151.0,0.00045,7]
[323207722,1713813044316,-151.0,0.00045,7]
[323207723,1713813044325,-151.0,0.00045,7]
[323207724,1713813044335,-259.0,0.00045,2]
[323207725,1713813044344,-259.0,0.00045,2]
[323207726,1713813044354,-151.0,0.000456,7]
[323207727,1713813044363,-151.0,0.000456,7]
[323207728,1713813044372,-221.925352,0.000456,7]
[323207729,1713813044381,-151.0,0.000456,7]
[323207730,1713813044390,-292.451662,0.000456,7]
[323207731,1713813044400,-151.0,0.000456,7]
[323207732,1713813044412,-151.841853,0.000456,7]
[323207733,1713813044422,-154.84515485,0.000459,4]
[323207734,1713813044431,-3000.94,0.00045958,6]
[323207735,1713813044440,-2870.08942115,0.00045989,2]
[323207777,1713813047138,-151.0,0.00035,2]
[323207778,1713813047147,-151.0,0.00036987,2]
[323207779,1713813047158,-151.0,0.00041834,7]
[323207780,1713813047168,-151.0,0.000433,7]
[323207781,1713813047177,-151.0,0.00045,7]
[323207782,1713813047186,-5878.0,0.00045989,2]
[323207807,1713813968898,233.99,0.0002,10]
[323207836,1713814232357,-927.91271944,0.00018893,2]
[323207895,1713814238378,-159.57488371,0.00018893,2]
[323207896,1713814238389,-312.60299253,0.00018894,2]
[323207897,1713814238398,-948.52017622,0.000189,2]
[323207898,1713814238435,-149.79110493,0.000189,2]
[323207899,1713814238445,-200.0,0.0002,2]
[323207900,1713814238454,-319.6542586,0.0002,2]
[323207901,1713814238464,-1098.31128115,0.000239,2]
[323207902,1713814238473,-692.61042729,0.00026999,2]
[323207903,1713814238483,-154.84515485,0.00027,2]
[323207904,1713814238492,-332.38819351,0.00027135,20]
[323207905,1713814238502,-155.92660579,0.00027136,2]
[323207906,1713814238511,-168.19826,0.00027397,2]
[323207907,1713814238520,-158.333334,0.00027397,2]
[323207908,1713814238529,-801.79803207,0.000275,17]
[323207909,1713814238539,-294.64440434,0.00028,2]
[323207910,1713814238548,-508.48833356,0.00028,2]
[323207911,1713814238557,-1098.31128115,0.000289,2]
[323207912,1713814238567,-1000.0,0.00029092,2]
[323207913,1713814238576,-166.666666,0.00029716,2]
[323207914,1713814238585,-300.0,0.00029806,2]
[323207915,1713814238594,-395.60805606,0.00029808,2]
[323207916,1713814238603,-395.60805606,0.00029808,2]
[323207917,1713814238613,-395.60805606,0.00029808,2]
[323207918,1713814238624,-395.60805606,0.00029808,2]
[323207919,1713814238633,-154.84515485,0.0003,4]
[323207920,1713814238645,-166.666666,0.0003,2]
[323207921,1713814238654,-320.898431,0.00030453,30]
[323207922,1713814238663,-154.84515485,0.00030454,4]
[323207923,1713814238672,-154.84515485,0.00030455,4]
[323207924,1713814238681,-166.666666,0.00030526,2]
[323207925,1713814238691,-166.666666,0.00031336,2]
[323207926,1713814238700,-1210.78934384,0.00032,3]
[323207927,1713814238709,-191.40398273,0.00032146,4]
[323207928,1713814238719,-166.666666,0.00032147,2]
[323207929,1713814238728,-420.0,0.00032787,2]
[323207930,1713814238738,-166.666666,0.00032957,2]
[323207931,1713814238750,-155.25721897,0.00033114,7]
[323207932,1713814238759,-166.666666,0.00033767,2]
[323207933,1713814238769,-1210.78934384,0.0003392,3]
[323207934,1713814238778,-465.92917544,0.0003485,4]
[323207935,1713814238788,-156.06083935,0.00034851,4]
[323207936,1713814238797,-554.09515182,0.00034851,4]
[323207938,1713814238806,-172.0,0.00034852,2]
[323207939,1713814238816,-49203.54292297,0.00034852,4]
[323207940,1713814238828,-3113.14529223,0.00034852,4]
[323207941,1713814238837,-536.44575071,0.00034999,4]
[323207943,1713814238846,-257.26224646,0.00035,4]
[323207945,1713814238855,-1024.29543692,0.00035,2]
[323207947,1713814238864,-6882.79997042,0.00035,4]
[323207949,1713814238873,-9562.85187392,0.00035,4]
[323207951,1713814238882,-3105.855303,0.00035616,120]
[323207953,1713814238893,-168.19826,0.00035827,2]
[323207955,1713814238902,-1331.86827823,0.0003584,7]
[323207956,1713814238911,-154.84515485,0.0003589,2]
[323207958,1713814238920,-163.07982954,0.00036016,7]
[323207960,1713814238929,-587.0,0.00036065,2]
[323207962,1713814238938,-1060.2891942,0.00036986,4]
[323207964,1713814238947,-3509.78351786,0.00037,2]
[323207966,1713814238956,-30926.09,0.0003749,3]
[323207968,1713814238965,-3000.0,0.000375,32]
[323207970,1713814238974,-3000.0,0.0003751,32]
[323207972,1713814238983,-3000.0,0.0003752,32]
[323207973,1713814238992,-235.04722905,0.00037529,15]
[323207974,1713814239001,-500.0,0.00037529,15]
[323207976,1713814239011,-500.0,0.00037529,15]
[323207977,1713814239020,-233.02594227,0.00037529,15]
[323207978,1713814239029,-3000.0,0.0003753,32]
[323207980,1713814239039,-3000.0,0.0003754,32]
[323207982,1713814239048,-3000.0,0.0003755,32]
[323207983,1713814239057,-3000.0,0.0003756,32]
[323207984,1713814239066,-3000.0,0.0003757,32]
[323207985,1713814239075,-3000.0,0.0003758,32]
[323207986,1713814239084,-4662.321782,0.0003759,32]
[323207987,1713814239094,-1307.97647827,0.0003776,7]
[323207988,1713814239103,-172.0,0.00037852,2]
[323207989,1713814239112,-172.0,0.00037852,2]
[323207990,1713814239121,-155.92660579,0.00037952,7]
[323207991,1713814239130,-628.0,0.00039,7]
[323207992,1713814239140,-276.16517788,0.00039091,7]
[323207993,1713814239150,-155.92660579,0.00039311,7]
[323207994,1713814239159,-158.333334,0.00039574,2]
[323207995,1713814239169,-823.0,0.00039672,3]
[323207997,1713814239179,-1492.7918435,0.0004,7]
[323207998,1713814239188,-154.84515485,0.0004,2]
[323207999,1713814239197,-4157.08582374,0.0004,30]
[323208000,1713814239207,-667.0,0.0004,30]
[323208001,1713814239216,-627.0,0.0004,30]
[323208002,1713814239225,-802.0,0.0004,30]